bitfinex/quotes_SOLUSD_20250901
["timestamp","ask_amount","ask_price","bid_price","bid_amount"]
[1756743800969,0.03,199.07,199.06,17.85144478]
[1756743801172,0.03,199.07,199.06,57.55144478]
[1756743801774,0.03,199.07,199.06,62.57505575]
[1756743801989,0.03,199.07,199.06,63.28505575]
[1756743804883,0.03,199.07,199.06,19.32920498]
[1756743805090,0.03,199.07,199.06,62.57505575]
[1756743805405,0.03,199.07,199.06,63.28505575]
[1756743809382,0.03,199.07,199.06,62.57505575]
[1756743809600,0.03,199.07,199.06,22.87505575]
[1756743809908,0.03,199.07,199.06,62.55505575]
[1756743810102,0.03,199.07,199.06,63.26505575]
[1756743810896,0.03,199.07,199.06,62.55505575]
[1756743811407,0.03,199.07,199.06,58.29920498]
[1756743811597,0.03,199.07,199.06,62.55505575]
[1756743811983,0.03,199.07,199.06,63.26505575]
[1756743813411,0.03,199.07,199.06,62.55505575]
[1756743813804,0.03,199.07,199.06,63.26505575]
[1756743814187,0.03,199.07,199.06,66.98238921]
[1756743815000,0.03,199.07,199.06,68.99542321]
[1756743815987,0.03,199.07,199.06,68.99683216]
[1756743819496,1e-08,199.07,199.06,68.99683216]
[1756743821287,1e-08,199.07,199.06,69.13899373]
[1756743821517,1e-08,199.09,199.08,43.85144478]
[1756743821705,1e-08,199.09,199.08,87.25018719]
[1756743821914,1e-08,199.09,199.08,87.91018719]
[1756743822616,1e-08,199.09,199.08,92.93329347]
[1756743823211,1e-08,199.09,199.08,88.81960427]
[1756743823411,0.03,199.11,199.09,13.59559401]
[1756743823610,0.03,199.11,199.1,65.48603796]
[1756743823813,0.03,199.11,199.1,66.14603796]
[1756743824310,133.8,199.18,199.11,13.59559401]
[1756743824518,133.8,199.18,199.17,5.02083647]
[1756743824828,133.8,199.18,199.17,43.37874241]
[1756743825205,133.8,199.18,199.17,56.97433642]
[1756743825403,0.1,199.19,199.17,56.97433642]
[1756743825635,0.1,199.19,199.18,3.71874241]
[1756743826627,0.1,199.19,199.18,3.74195529]
[1756743829303,0.1,199.19,199.18,22.35813369]
[1756743829527,0.1,199.19,199.18,27.27398446]
[1756743830220,0.1,199.19,199.18,27.27637694]
[1756743830421,0.1,199.19,199.18,21.59579255]
[1756743830810,0.1,199.19,199.18,26.61637694]
[1756743832169,0.1,199.19,199.18,22.36052617]
[1756743833521,0.1,199.19,199.18,22.35784508]
[1756743834029,0.1,199.19,199.18,26.61369416]
[1756743834527,0.1,199.19,199.18,27.27369416]
[1756743835122,0.1,199.19,199.18,26.61369416]
[1756743835746,0.1,199.19,199.18,21.59310977]
[1756743835936,0.1,199.19,199.18,56.977259]
[1756743836855,0.1,199.19,199.18,61.23310977]
[1756743837159,0.1,199.19,199.18,66.25369416]
[1756743837326,0.1,199.19,199.18,66.91208546]
[1756743838335,0.1,199.19,199.18,27.27208546]
[1756743838541,0.1,199.19,199.18,66.91208546]
[1756743838847,0.1,199.19,199.18,66.25208546]
[1756743839047,0.1,199.19,199.18,66.91208546]
[1756743839434,0.1,199.19,199.18,17.3356503]
[1756743839636,0.1,199.19,199.18,56.9756503]
[1756743840171,4.35585077,199.19,199.18,17.3356503]
[1756743840335,9.37619083,199.19,199.15,2.012022]
[1756743840531,4.25585077,199.18,199.15,2.012022]
[1756743840744,4.25585077,199.18,199.15,13.59559401]
[1756743840965,0.1,199.19,199.15,13.59559401]
[1756743841139,4.35585077,199.19,199.16,39.64]
[1756743841662,4.35585077,199.19,199.15,53.23559401]
[1756743841663,0.1,199.19,199.15,53.23559401]
[1756743841827,4.35585077,199.19,199.15,53.23559401]
[1756743843057,0.1,199.19,199.15,53.89559401]
[1756743843356,0.1,199.19,199.17,13.59559401]
[1756743843560,0.1,199.19,199.17,53.23559401]
[1756743843757,0.1,199.19,199.17,53.89559401]
[1756743844353,0.1,199.19,199.18,4.91585077]
[1756743844562,0.1,199.19,199.18,14.25559401]
[1756743844861,0.1,199.19,199.18,17.85144478]
[1756743845068,0.1,199.19,199.18,57.49144478]
[1756743845438,0.1,199.19,199.18,62.51202917]
[1756743845760,0.1,199.19,199.18,63.17202917]
[1756743848005,0.1,199.19,199.18,57.49144478]
[1756743848285,0.1,199.19,199.18,13.59559401]
[1756743848569,0.1,199.19,199.18,23.53202917]
[1756743849278,0.1,199.19,199.18,17.85144478]
[1756743849452,0.1,199.19,199.18,13.59559401]
[1756743850542,0.1,199.19,199.15,9.27715922]
[1756743850543,0.1,199.19,199.17,39.62]
[1756743852752,0.1,199.19,199.17,40.28]
[1756743853961,9.37619743,199.19,199.15,13.59559401]
[1756743854166,4.35585077,199.19,199.16,53.21559401]
[1756743854552,0.1,199.19,199.16,53.21559401]
[1756743854855,0.1,199.19,199.16,53.87559401]
[1756743855971,4.25585077,199.17,199.11,0.12]
[1756743856192,4.25585077,199.12,199.11,0.12]
[1756743856354,43.87585077,199.12,199.11,0.12]
[1756743856555,44.01801234,199.12,199.11,0.12]
[1756743857358,47.37896462,199.12,199.11,0.12]
[1756743857777,52.40106184,199.12,199.11,0.12]
[1756743858153,12.78106184,199.12,199.11,0.12]
[1756743858361,52.40106184,199.12,199.11,0.12]
[1756743860163,52.39997504,199.12,199.11,0.12]
[1756743860903,34.52412427,199.12,199.11,0.12]
[1756743861059,70.78425879,199.12,199.11,0.12]
[1756743861288,75.04010956,199.12,199.11,0.12]
[1756743861693,35.42010956,199.12,199.11,0.12]
[1756743861895,30.25585077,199.12,199.11,0.12]
[1756743862203,35.27794799,199.12,199.11,0.12]
[1756743864424,69.87585077,199.12,199.11,0.12]
[1756743865428,74.89794799,199.12,199.11,0.12]
[1756743865592,75.04010956,199.12,199.11,0.12]
[1756743869495,30.39801234,199.12,199.11,0.78]
[1756743869696,74.89794799,199.12,199.11,0.78]
[1756743870414,74.89794799,199.12,199.11,0.12]
[1756743870713,35.42010956,199.12,199.11,0.12]
[1756743870907,75.04010956,199.12,199.11,0.12]
[1756743873794,56.26566252,199.12,199.11,0.12]
[1756743873999,68.64394546,199.12,199.11,0.12]
[1756743874420,64.38809469,199.12,199.11,0.12]
[1756743874906,64.3874657,199.12,199.11,0.12]
[1756743875620,24.7674657,199.12,199.11,0.12]
[1756743875829,20.51161493,199.12,199.11,0.12]
[1756743876122,49.04010956,199.12,199.11,0.12]
[1756743876632,9.42010956,199.12,199.11,0.12]
[1756743876809,44.78425879,199.12,199.11,0.8]
[1756743877007,49.04010956,199.12,199.11,0.8]
[1756743877618,49.04010956,199.12,199.11,0.12]
[1756743878206,9.27794799,199.12,199.11,0.8]
[1756743878430,48.89794799,199.12,199.11,0.8]
[1756743878908,43.87585077,199.12,199.11,0.8]
[1756743879108,9.42010956,199.12,199.11,0.12]
[1756743879320,49.04010956,199.12,199.11,0.12]
[1756743881633,52.39609354,199.12,199.11,0.12]
[1756743883719,12.77609354,199.12,199.11,0.12]
[1756743883924,48.14024277,199.12,199.11,0.12]
[1756743884106,8.52024277,199.12,199.11,0.12]
[1756743884312,38.77609354,199.12,199.11,0.8]
[1756743884513,74.89794799,199.12,199.11,0.8]
[1756743885241,75.04010956,199.12,199.11,0.8]
[1756743885533,26.0,199.12,199.11,0.8]
[1756743885734,30.25585077,199.12,199.11,0.8]
[1756743886115,35.27794799,199.12,199.11,0.8]
[1756743886524,35.27794799,199.12,199.11,0.12]
[1756743887234,31.02209722,199.12,199.11,0.8]
[1756743887438,35.27794799,199.12,199.11,0.8]
[1756743887732,35.42010956,199.12,199.11,0.12]
[1756743887924,9.42010956,199.12,199.11,0.12]
[1756743888125,12.77805164,199.12,199.11,0.12]
[1756743889129,12.77805164,199.12,199.09,0.12]
[1756743889130,26.0,199.1,199.09,0.12]
[1756743889322,78.39855612,199.1,199.09,0.12]
[1756743892933,38.77855612,199.1,199.09,0.12]
[1756743893141,78.39855612,199.1,199.09,0.12]
[1756743895060,38.77855612,199.1,199.09,0.12]
[1756743895422,78.39855612,199.1,199.09,0.12]
[1756743896316,82.65440689,199.1,199.09,0.12]
[1756743896517,78.39855612,199.1,199.09,0.12]
[1756743899148,78.39855612,199.1,199.09,0.8]
[1756743899149,78.25639455,199.1,199.09,0.8]
[1756743899345,78.39855612,199.1,199.09,0.8]
[1756743900627,78.39855612,199.1,199.09,0.12]
[1756743901322,82.65440689,199.1,199.09,0.12]
[1756743901652,7.36771453,199.09,199.07,0.12]
[1756743901822,51.58008471,199.08,199.07,0.12]
[1756743902244,185.38008471,199.08,199.07,0.12]
[1756743902448,56.60319099,199.08,199.07,0.12]
[1756743903332,26.0,199.05,199.02,0.12]
[1756743903531,4.39801234,199.03,199.02,0.12]
[1756743903740,7.75595442,199.03,199.02,0.12]
[1756743904355,47.35595442,199.03,199.02,0.8]
[1756743904653,12.7803226,199.03,199.02,0.8]
[1756743904844,47.98231026,199.03,199.02,0.8]
[1756743905042,52.23816103,199.03,199.02,0.8]
[1756743905436,12.63816103,199.03,199.02,0.8]
[1756743905639,7.61379285,199.03,199.02,0.8]
[1756743905866,47.21379285,199.03,199.02,0.8]
[1756743906353,7.61379285,199.03,199.02,0.8]
[1756743906668,47.21379285,199.03,199.02,0.8]
[1756743907371,7.61379285,199.03,199.02,0.8]
[1756743907665,47.35595442,199.03,199.02,0.12]
[1756743907956,57.21205797,199.03,199.02,0.12]
[1756743908137,52.18768979,199.03,199.02,0.12]
[1756743908455,57.21205797,199.03,199.02,0.12]
[1756743909143,17.61205797,199.03,199.02,0.12]
[1756743909458,57.21205797,199.03,199.02,0.12]
[1756743910654,17.61205797,199.03,199.02,0.12]
[1756743910961,57.21205797,199.03,199.02,0.12]
[1756743911547,57.21205797,199.03,199.02,1e-08]
[1756743911761,63.86172633,199.03,199.02,1e-08]
[1756743912133,26.0,199.01,199.0,1e-08]
[1756743912332,84.83735815,199.01,199.0,1e-08]
[1756743912553,7.36771453,199.0,198.98,0.12]
[1756743912753,52.38133257,198.99,198.98,0.12]
[1756743912961,59.60688553,198.99,198.98,0.12]
[1756743913259,26.14216157,198.95,198.89,0.91]
[1756743913458,30.39801234,198.92,198.89,0.91]
[1756743913763,69.99801234,198.92,198.91,0.91]
[1756743914942,35.42515893,198.92,198.91,0.91]
[1756743915165,75.04515893,198.92,198.91,0.91]
[1756743915563,30.39801234,198.92,198.91,0.91]
[1756743915778,70.01801234,198.92,198.91,0.91]
[1756743915980,75.04515893,198.92,198.91,0.91]
[1756743916963,39.62,198.92,198.91,0.91]
[1756743917167,4.25585077,198.93,198.91,0.91]
[1756743917168,48.90280108,198.93,198.91,0.91]
[1756743917338,48.90280108,198.93,198.92,0.71]
[1756743917538,43.87585077,198.93,198.92,0.71]
[1756743917776,133.08,198.94,198.92,0.71]
[1756743917957,133.08,198.94,198.92,4.96585077]
[1756743918137,133.08,198.94,198.93,4.25585077]
[1756743918334,133.08,198.94,198.93,4.96585077]
[1756743919345,133.08,198.94,198.93,9.99274465]
[1756743919553,39.62,198.98,198.93,23.58833866]
[1756743919754,172.7,198.99,198.94,4.96585077]
[1756743919959,172.7,198.99,198.95,4.96585077]
[1756743920261,172.7,198.99,198.96,0.71]
[1756743921948,4.25585077,199.03,198.98,4.25585077]
[1756743922166,43.85585077,199.03,198.98,4.25585077]
[1756743922365,69.85585077,199.03,198.99,0.71]
[1756743922668,69.85585077,199.03,199.0,0.71]
[1756743922871,4.25585077,199.01,198.97,0.71]
[1756743923055,9.28115238,199.0,198.97,0.71]
[1756743923255,0.03,198.98,198.97,0.71]
[1756743927249,0.03,198.98,198.97,4.96585077]
[1756743927945,0.03,198.98,198.97,0.71]
[1756743930490,0.03,198.98,198.97,5.73588329]
[1756743931249,0.03,198.98,198.97,23.58732807]
[1756743932882,0.03,198.98,198.97,14.30559401]
[1756743933560,0.03,198.98,198.97,23.58732807]
[1756743934356,0.03,198.98,198.97,18.56144478]
[1756743934667,0.03,198.98,198.97,14.30559401]
[1756743934866,0.03,198.98,198.97,18.56144478]
[1756743935068,0.03,198.98,198.97,23.58732807]
[1756743936882,0.03,198.98,198.97,18.56144478]
[1756743937398,0.03,198.98,198.97,23.58732807]
[1756743940467,0.03,198.98,198.97,18.56144478]
[1756743940662,0.03,198.98,198.97,13.59559401]
[1756743940987,0.03,198.98,198.96,13.59559401]
[1756743941559,0.03,198.98,198.95,13.59559401]
[1756743941766,0.65,198.97,198.94,0.12]
[1756743941983,4.25585077,198.96,198.94,0.12]
[1756743942187,0.65,198.97,198.94,0.12]
[1756743942188,0.14216157,198.97,198.94,0.12]
[1756743942376,4.25585077,198.96,198.94,0.12]
[1756743942572,4.90585077,198.96,198.94,0.12]
[1756743943177,4.25585077,198.96,198.94,0.12]
[1756743943581,9.28204869,198.96,198.94,0.12]
[1756743943779,4.25585077,198.97,198.94,0.12]
[1756743943987,39.61,198.98,198.94,0.78]
[1756743944181,0.03,198.98,198.95,0.66]
[1756743944377,5.05564431,198.98,198.94,0.12]
[1756743944692,0.03,198.98,198.96,17.85144478]
[1756743944880,0.03,198.98,198.97,18.51144478]
[1756743945599,0.03,198.98,198.97,23.53732807]
[1756743946772,0.03,198.98,198.97,18.51144478]
[1756743947189,0.03,198.98,198.95,5.02620239]
[1756743947190,0.03,198.98,198.94,0.12]
[1756743947392,0.03,198.98,198.96,17.85144478]
[1756743947694,0.03,198.98,198.96,13.59559401]
[1756743948196,0.03,198.98,198.97,18.51144478]
[1756743948494,0.03,198.98,198.97,14.25559401]
[1756743948683,0.03,198.98,198.97,18.51144478]
[1756743949300,0.03,198.98,198.97,18.01428793]
[1756743949488,0.03,198.98,198.97,22.2701387]
[1756743950001,0.03,198.98,198.97,27.29602199]
[1756743951494,0.03,198.98,198.97,27.29588455]
[1756743952398,0.03,198.98,198.97,27.29589685]
[1756743954294,0.03,198.98,198.97,23.53732807]
[1756743956196,0.03,198.98,198.97,58.07144478]
[1756743957586,0.03,198.98,198.97,63.09732807]
[1756743959594,0.03,198.98,198.97,58.8414773]
[1756743959897,0.03,198.98,198.97,57.41144478]
[1756743960502,0.68,198.98,198.94,0.12]
[1756743960678,0.68,198.98,198.94,53.27559401]
[1756743961202,0.03,198.98,198.94,13.71559401]
[1756743961410,4.90585077,198.97,198.94,0.12]
[1756743961580,4.90585077,198.96,198.94,0.12]
[1756743961985,4.25585077,198.97,198.94,0.12]
[1756743962194,4.90585077,198.97,198.94,0.12]
[1756743962389,4.28585077,198.98,198.94,0.78]
[1756743962704,5.05563659,198.98,198.94,0.78]
[1756743962908,9.31148736,198.98,198.94,0.12]
[1756743963322,0.03,198.98,198.94,4.37585077]
[1756743963523,0.65,198.97,198.94,0.12]
[1756743964288,9.93212871,198.96,198.94,0.12]
[1756743964620,8.28354158,198.95,198.94,0.12]
[1756743964787,8.42570315,198.95,198.94,0.12]
[1756743966388,20.67764464,198.95,198.94,0.12]
[1756743967405,20.67764464,198.95,198.94,1e-08]
[1756743967599,26.0,198.93,198.92,1e-08]
[1756743967799,76.56096721,198.93,198.92,1e-08]
[1756743968014,84.83438233,198.93,198.92,1e-08]
[1756743968409,89.86127621,198.93,198.92,1e-08]
[1756743969792,46.04542544,198.93,198.92,1e-08]
[1756743970136,38.80259703,198.93,198.92,1e-08]
[1756743970294,78.36259703,198.93,198.92,1e-08]
[1756743971190,74.98490622,198.93,198.92,1e-08]
[1756743972599,39.56,198.94,198.92,1e-08]
[1756743972811,43.81585077,198.94,198.92,1e-08]
[1756743973133,0.03,198.98,198.93,0.71]
[1756743973290,0.03,198.98,198.94,4.96585077]
[1756743973494,0.17216157,198.98,198.94,0.71]
[1756743973720,4.42801234,198.98,198.95,0.71]
[1756743973920,9.45365936,198.98,198.95,0.71]
[1756743974123,0.03,198.98,198.94,4.25585077]
[1756743974516,9.31149534,198.98,198.94,0.71]
[1756743974714,9.31149534,198.98,198.93,4.25585077]
[1756743974923,0.03,198.98,198.94,4.96585077]
[1756743975125,0.03,198.98,198.95,0.71]
[1756743975627,4.25585077,198.96,198.92,1e-08]
[1756743975811,4.25585077,198.95,198.92,13.59559402]
[1756743976126,65.56,198.97,198.93,0.71]
[1756743976604,9.31153403,198.98,198.95,4.25585077]
[1756743976605,0.03,198.98,198.95,4.25585077]
[1756743976936,0.03,198.98,198.96,0.71]
[1756743977225,4.28585077,198.98,198.94,13.59559401]
[1756743977432,4.28585077,198.98,198.95,0.71]
[1756743977829,0.03,198.98,198.96,0.71]
[1756743978129,4.28585077,198.98,198.94,0.71]
[1756743978439,133.8,198.97,198.94,0.71]
[1756743978727,133.8,198.97,198.95,0.71]
[1756743980135,4.25585077,198.96,198.94,0.12]
[1756743980831,182.64181191,198.97,198.94,0.83]
[1756743981404,182.64181191,198.97,198.94,0.12]
[1756743981906,182.64181191,198.97,198.94,0.83]
[1756743982308,133.8,198.97,198.95,0.71]
[1756743982508,133.8,198.97,198.96,0.71]
[1756743983321,133.8,198.97,198.94,0.83]
[1756743983522,143.08185927,198.97,198.94,0.12]
[1756743984141,138.05585077,198.97,198.94,0.83]
[1756743984439,133.8,198.97,198.95,0.71]
[1756743985118,133.8,198.97,198.94,0.12]
[1756743985422,133.8,198.97,198.94,0.83]
[1756743986650,143.08174861,198.97,198.94,0.12]
[1756743987033,138.05585077,198.97,198.94,0.12]
[1756743987226,138.05585077,198.97,198.95,0.71]
[1756743987227,133.8,198.97,198.95,0.71]
[1756743987939,133.8,198.97,198.96,14.30559401]
[1756743988138,133.8,198.97,198.96,23.58758068]
[1756743989841,0.03,198.98,198.97,13.59559401]
[1756743990141,0.03,198.98,198.97,9.99173406]
[1756743999626,0.03,198.98,198.97,63.10732807]
[1756744003259,0.03,199.0,198.99,48.10729555]
[1756744003458,0.03,199.02,199.0,13.59559401]
[1756744003630,134.55,199.12,199.02,13.59559401]
[1756744003959,134.55,199.12,199.09,4.25585077]
[1756744003960,3.36965492,199.11,199.09,4.25585077]
[1756744004156,0.72,199.1,199.08,4.25585077]
[1756744004334,0.72,199.1,199.06,39.52]
[1756744004335,0.72,199.1,199.07,17.85144478]
[1756744005440,0.72,199.1,199.07,22.87471523]
[1756744006160,133.83,199.12,199.07,22.87471523]
[1756744006363,0.72,199.11,199.07,17.85144478]
[1756744006545,0.72,199.11,199.07,22.87478445]
[1756744006741,0.72,199.1,199.07,17.85144478]
[1756744008434,0.72,199.1,199.07,22.8747761]
[1756744009350,133.83,199.12,199.08,13.59559401]
[1756744009656,134.55,199.12,199.09,4.25585077]
[1756744010361,133.83,199.12,199.09,13.59559401]
[1756744010663,133.83,199.12,199.1,4.25585077]
[1756744011656,133.83,199.12,199.09,4.25585077]
[1756744013162,133.83,199.12,199.09,9.27865062]
[1756744015774,134.55,199.12,199.09,9.27865062]
[1756744015953,134.55,199.12,199.09,4.25585077]
[1756744016266,0.72,199.11,199.08,13.59559401]
[1756744016469,134.55,199.12,199.09,3.74128779]
[1756744016766,133.83,199.12,199.1,4.25585077]
[1756744017145,133.83,199.12,199.1,4.91585077]
[1756744017346,133.83,199.12,199.1,9.93826811]
[1756744017547,133.83,199.12,199.1,4.91585077]
[1756744017747,133.83,199.12,199.1,9.93841769]
[1756744017945,133.83,199.12,199.11,17.85144478]
[1756744018368,133.83,199.12,199.11,17.33700249]
[1756744018662,134.55,199.12,199.08,4.25585077]
[1756744018858,134.55,199.12,199.09,17.33705803]
[1756744019065,134.55,199.12,199.09,13.59559401]
[1756744019471,0.72,199.11,199.09,13.59559401]
[1756744019654,133.83,199.12,199.08,17.85144478]
[1756744019864,0.72,199.11,199.09,3.74161805]
[1756744020080,0.72,199.11,199.08,17.85144478]
[1756744020255,0.72,199.11,199.09,3.74161847]
[1756744020456,0.72,199.11,199.08,17.85144478]
[1756744020784,0.72,199.1,199.09,3.74181706]
[1756744021453,0.72,199.1,199.06,13.59559401]
[1756744021649,0.72,199.09,199.07,3.74260072]
[1756744021870,0.72,199.09,199.06,13.59559401]
[1756744022263,4.25585077,199.1,199.07,3.74307672]
[1756744022560,0.72,199.09,199.08,3.74278676]
[1756744022973,44.45585077,199.11,199.08,3.74278676]
[1756744023191,44.45585077,199.11,199.06,4.25585077]
[1756744023487,138.08585077,199.12,199.07,13.68206698]
[1756744023692,133.83,199.12,199.1,4.25585077]
[1756744024103,133.83,199.12,199.11,3.74305764]
[1756744024295,138.80585077,199.12,199.06,17.85144478]
[1756744024467,4.97585077,199.11,199.07,3.74280022]
[1756744024658,0.72,199.11,199.08,3.74280022]
[1756744024857,0.72,199.11,199.09,3.74280022]
[1756744025083,0.72,199.11,199.1,3.74280022]
[1756744025292,133.83,199.12,199.1,3.74280022]
[1756744025590,133.83,199.12,199.08,4.25585077]
[1756744025776,133.83,199.12,199.09,3.74339504]
[1756744025964,133.83,199.12,199.1,3.74339504]
[1756744026165,133.83,199.12,199.11,3.74339504]
[1756744026763,134.5,199.12,199.11,3.74339504]
[1756744027480,143.77794799,199.12,199.11,3.74339504]
[1756744027987,138.75585077,199.12,199.11,3.74339504]
[1756744028192,134.5,199.12,199.11,3.74339504]
[1756744028375,133.83,199.12,199.11,3.74339504]
[1756744028986,0.03,199.12,199.11,27.27718927]
[1756744030267,0.03,199.12,199.11,17.33898905]
[1756744030674,0.03,199.12,199.11,27.27718927]
[1756744032572,0.03,199.12,199.11,21.59483982]
[1756744032787,0.03,199.12,199.11,26.61718927]
[1756744032996,0.03,199.12,199.11,17.33898905]
[1756744033183,0.03,199.12,199.11,3.74339504]
[1756744033385,4.95585077,199.12,199.11,3.74339504]
[1756744033770,4.95585077,199.12,199.07,17.85144478]
[1756744034287,4.95585077,199.12,199.07,22.8747568]
[1756744034588,0.67,199.11,199.07,22.8747568]
[1756744035674,4.28585077,199.12,199.07,23.5347568]
[1756744035871,4.95585077,199.12,199.07,23.5347568]
[1756744036098,4.25585077,199.1,199.06,53.05559401]
[1756744036479,4.92585077,199.11,199.06,53.71559401]
[1756744036988,4.92585077,199.11,199.06,14.25559401]
[1756744037201,4.92585077,199.11,199.06,18.51144478]
[1756744037502,4.92585077,199.11,199.06,23.53498238]
[1756744037676,0.03,199.12,199.07,0.66]
[1756744038004,9.97795368,199.12,199.07,0.66]
[1756744039080,9.97795368,199.12,199.05,39.46]
[1756744039081,4.25585077,199.1,199.05,4.25585077]
[1756744039295,134.61216157,199.11,199.03,14.25559401]
[1756744039296,4.25585077,199.08,199.04,13.59559401]
[1756744039508,4.92585077,199.08,199.03,13.59559401]
[1756744039702,4.92585077,199.07,199.03,13.59559401]
[1756744040410,4.92585077,199.07,199.02,18.74019498]
[1756744040612,4.25585077,199.08,199.03,0.66]
[1756744040796,4.25585077,199.08,199.03,4.91585077]
[1756744040997,4.25585077,199.08,199.04,0.66]
[1756744041412,133.8,199.09,199.04,4.25585077]
[1756744041611,133.8,199.09,199.05,0.66]
[1756744041818,133.8,199.09,199.02,13.71559401]
[1756744041819,133.8,199.09,199.06,0.66]
[1756744042314,3.38032762,199.08,199.06,0.66]
[1756744042693,133.8,199.09,199.07,4.91585077]
[1756744042888,133.8,199.09,199.07,4.25585077]
[1756744043083,133.8,199.09,199.08,4.91585077]
[1756744043287,133.8,199.09,199.08,8.67061211]
[1756744043500,0.03,199.12,199.08,13.69371839]
[1756744043695,3.41081568,199.12,199.09,4.41476134]
[1756744043908,3.41081568,199.12,199.1,3.75476134]
[1756744044096,3.41081568,199.12,199.11,3.75476134]
[1756744044301,3.41081568,199.12,199.09,0.66]
[1756744044509,3.41081568,199.12,199.1,5.0226017]
[1756744045591,3.41081568,199.12,199.11,18.51144478]
[1756744045804,0.03,199.12,199.11,18.51144478]
[1756744046208,0.03,199.12,199.11,22.26418234]
[1756744046520,0.03,199.12,199.11,8.66858833]
[1756744046895,0.03,199.12,199.11,61.70418234]
[1756744047608,1e-08,199.12,199.11,66.72653179]
[1756744050616,1e-08,199.12,199.11,26.62653179]
[1756744050821,1e-08,199.12,199.11,66.06653179]
[1756744051326,1e-08,199.12,199.11,61.81068102]
[1756744051726,1e-08,199.12,199.11,66.72653179]
[1756744054513,1e-08,199.12,199.11,66.71814151]
[1756744057403,1e-08,199.12,199.11,62.46229074]
[1756744057604,1e-08,199.12,199.11,66.71814151]
[1756744063720,1e-08,199.12,199.11,26.61814151]
[1756744063930,1e-08,199.12,199.11,56.75994129]
[1756744064137,0.72000001,199.12,199.11,56.75994129]
[1756744065005,1e-08,199.12,199.11,56.75994129]
[1756744065425,1e-08,199.12,199.11,56.75560605]
[1756744065625,1e-08,199.12,199.11,61.7779555]
[1756744065823,1e-08,199.12,199.11,56.75560605]
[1756744066230,1e-08,199.12,199.11,61.7779555]
[1756744066536,1e-08,199.12,199.11,56.75560605]
[1756744066722,0.72000001,199.12,199.11,17.45560605]
[1756744066926,0.72000001,199.12,199.11,56.87560605]
[1756744067240,1e-08,199.12,199.11,66.15380627]
[1756744067413,1e-08,199.12,199.11,61.8979555]
[1756744070028,1e-08,199.12,199.11,56.87560605]
[1756744070513,1e-08,199.12,199.11,61.8979555]
[1756744072422,1e-08,199.12,199.11,66.80380627]
[1756744073232,1e-08,199.12,199.11,62.5479555]
[1756744073445,1e-08,199.12,199.11,66.80380627]
[1756744074751,1e-08,199.12,199.11,62.5479555]
[1756744074930,1e-08,199.12,199.11,66.80380627]
[1756744075530,1e-08,199.12,199.11,63.06379423]
[1756744076223,1e-08,199.12,199.11,62.41379423]
[1756744076632,1e-08,199.12,199.11,63.06379423]
[1756744078924,1e-08,199.12,199.11,19.38794346]
[1756744079120,1e-08,199.12,199.11,22.99379423]
[1756744079346,1e-08,199.12,199.11,62.39379423]
[1756744080643,1e-08,199.12,199.11,22.99379423]
[1756744080826,1e-08,199.12,199.11,13.71559401]
[1756744081028,0.72000001,199.12,199.11,53.11559401]
[1756744082031,0.72000001,199.12,199.11,0.12]
[1756744082032,4.97585078,199.12,199.11,0.12]
[1756744082780,1e-08,199.12,199.11,5.14234945]
[1756744083574,1e-08,199.12,199.11,23.64379423]
[1756744083865,1e-08,199.12,199.11,22.99379423]
[1756744084152,1e-08,199.12,199.11,23.64379423]
[1756744084651,1e-08,199.12,199.11,22.99379423]
[1756744085150,0.68000001,199.12,199.11,0.12]
[1756744085942,0.68000001,199.12,199.09,0.12]